[Event "FIDE Open World Rapid 2024"]
[Site "New York"]
[Date "2024.12.27"]
[Round "6.1"]
[White "Carlsen, Magnus"]
[Black "Hardaway, Brewington"]
[Result "1-0"]
[ECO "A13"]
[WhiteElo "2831"]
[BlackElo "2499"]
[Annotator "TA"]
[PlyCount "79"]
[EventDate "2024.12.14"]
[EventType "swiss"]
[EventCountry "USA"]
[SourceTitle "playchess.com"]
[Source "ChessBase"]
[SourceQuality "1"]
[TimeControl "900+10"]

{[%evp 21,79,1,7,-15,6,-16,25,19,21,25,63,63,55,23,164,152,190,181,230,218,231,227,191,227,226,233,272,286,341,345,328,343,629,992,1066,1045,1129,1117,1003,563,1740,1706,1803,1859,1534,1463,1697,1916,1876,1664,2053,2188,2106,945,2702,2341,2976,2226,29972,29973]} 1. Nf3 {[%emt 0:01:04]} Nf6 {[%emt 0:00:03]} 2. c4 {[%emt 0:00:06]} e6 {[%emt 0:00:02]} 3. g3 {[%emt 0:00:02]} d5 {[%emt 0:00:03]} 4. Bg2 {[%emt 0:00:03]} d4 {[%emt 0:00:18]} 5. d3 {[%emt 0:00:20]} c5 {[%emt 0:00:21]} 6. e4 {[%emt 0:00:04]} Nc6 {[%emt 0:00:36]} 7. e5 {[%emt 0:00:14]} Nd7 {[%emt 0:00:03]} 8. Qe2 {[%emt 0:00:16]} Qc7 {[%emt 0:01:39]} 9. Bf4 {[%emt 0:00:04]} h6 {[%emt 0:01:36]} 10. h4 {[%emt 0:00:06]} b6 {[%emt 0:00:19]} 11. Nbd2 {[%emt 0:00:53]} Bb7 {[%emt 0:00:07]} 12. a3 {[%emt 0:01:00]} Be7 {[%emt 0:00:31]} (12... Ncxe5 $2 13. Nxe5 Bxg2 14. Nxf7 $18) 13. h5 {[%emt 0:02:10]} O-O-O {[%emt 0:00:40]} (13... Ncxe5 $2 14. Nxe5 Bxg2 15. Nxf7 $18) 14. Kf1 {[%emt 0:00:02]} Rdg8 {[%emt 0:01:40]} 15. Ne4 {[%emt 0:00:29]} Ncxe5 {[%emt 0:02:07]} (15... Ndxe5 $6 16. b4 (16. Nxc5 bxc5 17. Bxe5 Nxe5 $11) 16... f6 (16... cxb4 $2 17. Nxe5 Nxe5 18. axb4 $18) 17. bxc5 $16) 16. Nxe5 {[%emt 0:00:02]} Nxe5 {[%emt 0:00:02]} 17. b4 {[%emt 0:00:03]} (17. Nxc5 $5 Bxg2+ 18. Kxg2 bxc5 19. Bxe5 (19. Qxe5 Qxe5 20. Bxe5 f6 $16) 19... Qb7+ 20. Kg1 $15) 17... f5 {[%emt 0:03:14]} (17... cxb4 18. axb4 Qb8 19. Bxe5 Qxe5 20. Rxa7 $18) (17... f6 $1 $11) 18. Nxc5 $1 $18 {[%emt 0:00:49]} Bxg2+ {[%emt 0:00:02]} 19. Kxg2 {[%emt 0:00:01]} Qc6+ {[%emt 0:00:15]} (19... Bxc5 {was necessary.} 20. Bxe5 (20. Qxe5 Qxe5 21. Bxe5 Be7 $18) 20... Bd6) 20. f3 $18 {[%emt 0:00:06]} Nxf3 {[%emt 0:02:03]} 21. Qxe6+ {[%emt 0:00:19]} (21. Qxf3 $6 Qxf3+ 22. Kxf3 bxc5 $16) 21... Qxe6 {[%emt 0:00:01]} 22. Nxe6 {[%emt 0:00:01]} Ng5 {[%emt 0:00:03]} 23. Rhe1 {[%emt 0:00:52]} ({Don't play} 23. Nxd4 Bf6) 23... Nxe6 {[%emt 0:00:30]} 24. Rxe6 {[%emt 0:00:01]} Kd7 {[%emt 0:00:06]} 25. Rae1 {[%emt 0:00:52]} Re8 {[%emt 0:00:02]} 26. R1e5 {[%emt 0:00:30]} Bf6 $2 {[%emt 0:01:22]} (26... Bg5 27. Rd6+ Kc7) 27. Rxe8 $18 {[%emt 0:00:33]} Rxe8 {[%emt 0:00:01]} 28. Rxe8 {[%emt 0:00:02]} ({Less strong is} 28. Rxf5 Re1 29. Rd5+ Ke6 $18) 28... Kxe8 {[%emt 0:00:01]} 29. b5 {[%emt 0:00:01]} Kd7 {[%emt 0:00:22]} 30. a4 {[%emt 0:00:07]} Ke6 {[%emt 0:01:07]} 31. Bb8 {[%emt 0:00:06]} Bd8 {[%emt 0:00:02]} 32. Bxa7 {[%emt 0:00:12]} Kd6 {[%emt 0:00:01]} 33. Bb8+ {[%emt 0:00:23]} Kc5 {[%emt 0:00:01]} 34. Be5 {[%emt 0:00:16]} Bf6 {[%emt 0:00:43]} 35. Bc7 {[%emt 0:00:13]} Bg5 {[%emt 0:00:24]} 36. Kf3 {[%emt 0:00:02]} Bd2 {[%emt 0:00:10]} 37. Be5 {[%emt 0:00:02]} Be3 {[%emt 0:00:02]} 38. Bxg7 {[%emt 0:00:30]} Kb4 {[%emt 0:00:01]} 39. Be5 {[%emt 0:00:04]} Kxa4 {[%emt 0:00:02]} 40. Bf4 {[%emt 0:00:03]} 1-0

[Event "FIDE Open World Rapid 2024"]
[Site "New York"]
[Date "2024.12.27"]
[Round "6.1"]
[White "Lodici, Lorenzo"]
[Black "Dardha, Daniel"]
[Result "0-1"]
[ECO "B12"]
[WhiteElo "2564"]
[BlackElo "2639"]
[Annotator "ChessBase"]
[PlyCount "82"]
[EventDate "2024.12.14"]
[EventType "swiss"]
[EventCountry "USA"]
[SourceTitle "playchess.com"]
[Source "ChessBase"]
[SourceQuality "1"]
[TimeControl "900+10"]

1. e4 {[%emt 0:01:07]} c6 {[%emt 0:00:04]} 2. d4 {[%emt 0:00:02]} d5 {[%emt 0:00:02]} 3. f3 {[%emt 0:00:02]} e6 {[%emt 0:00:25]} 4. Nc3 {[%emt 0:00:02]} Bb4 {[%emt 0:00:16]} 5. Bd2 {[%emt 0:00:01]} Ne7 {[%emt 0:00:15]} 6. h4 {[%emt 0:00:01]} c5 {[%emt 0:01:09]} 7. a3 {[%emt 0:00:24]} Bxc3 {[%emt 0:00:16]} 8. Bxc3 {[%emt 0:00:02]} Nbc6 {[%emt 0:00:05]} 9. dxc5 {[%emt 0:00:01]} e5 {[%emt 0:00:54]} 10. b4 {[%emt 0:01:47]} O-O {[%emt 0:00:59]} 11. h5 {[%emt 0:00:29]} h6 {[%emt 0:00:46]} 12. Bd3 {[%emt 0:01:57]} f5 {[%emt 0:01:55]} 13. Ne2 {[%emt 0:00:49]} fxe4 {[%emt 0:01:14]} 14. fxe4 {[%emt 0:00:01]} d4 {[%emt 0:00:57]} 15. Bd2 {[%emt 0:02:15]} Be6 {[%emt 0:01:18]} 16. Ng3 {[%emt 0:00:29]} a5 {[%emt 0:01:16]} 17. Rf1 {[%emt 0:00:34]} Qc7 {[%emt 0:00:54]} 18. Rxf8+ {[%emt 0:00:54]} Rxf8 {[%emt 0:00:03]} 19. Qe2 {[%emt 0:00:02]} Qc8 {[%emt 0:01:26]} 20. b5 {[%emt 0:01:41]} Bg4 {[%emt 0:00:30]} 21. Bc4+ {[%emt 0:00:00]} Kh8 {[%emt 0:00:02]} 22. Qd3 {[%emt 0:00:03]} Nb8 {[%emt 0:00:03]} 23. Bxa5 {[%emt 0:00:17]} Nd7 {[%emt 0:00:02]} 24. Bb4 {[%emt 0:00:34]} Nxc5 {[%emt 0:00:14]} 25. Bxc5 {[%emt 0:00:36]} Qxc5 {[%emt 0:00:02]} 26. Kd2 {[%emt 0:00:02]} Rf2+ {[%emt 0:01:14]} 27. Kc1 {[%emt 0:00:01]} Nc8 {[%emt 0:00:28]} 28. Rb1 {[%emt 0:00:59]} Nb6 {[%emt 0:01:13]} 29. Rb4 {[%emt 0:00:01]} Rxg2 {[%emt 0:00:09]} 30. Qb3 {[%emt 0:04:35]} Rf2 {[%emt 0:00:51]} 31. Bd3 {[%emt 0:00:01]} Rf3 {[%emt 0:00:14]} 32. Nf5 {[%emt 0:00:26]} Bxf5 {[%emt 0:00:30]} 33. exf5 {[%emt 0:00:13]} e4 {[%emt 0:00:07]} 34. Qf7 {[%emt 0:00:04]} exd3 {[%emt 0:00:03]} 35. Qe8+ {[%emt 0:00:02]} Kh7 {[%emt 0:00:01]} 36. Qg6+ {[%emt 0:00:04]} Kg8 {[%emt 0:00:01]} 37. Qe8+ {[%emt 0:00:18]} Qf8 {[%emt 0:00:02]} 38. Qe6+ {[%emt 0:00:01]} Kh8 {[%emt 0:00:09]} 39. Qxb6 {[%emt 0:00:05]} Qc8 {[%emt 0:00:27]} 40. c4 {[%emt 0:00:32]} dxc3 {[%emt 0:00:02]} 41. Qg1 {[%emt 0:00:10]} Qxf5 {[%emt 0:00:02]} 0-1

[Event "FIDE Open World Rapid 2024"]
[Site "New York"]
[Date "2024.12.27"]
[Round "6.2"]
[White "Suleymanli, Aydin"]
[Black "Manafov, Vugar"]
[Result "1-0"]
[ECO "E14"]
[WhiteElo "2623"]
[BlackElo "2431"]
[Annotator "ChessBase"]
[PlyCount "53"]
[EventDate "2024.12.14"]
[EventType "swiss"]
[EventCountry "USA"]
[SourceTitle "playchess.com"]
[Source "ChessBase"]
[SourceQuality "1"]
[TimeControl "900+10"]

1. d4 {[%emt 0:00:03]} Nf6 {[%emt 0:00:04]} 2. c4 {[%emt 0:00:00]} e6 {[%emt 0:00:02]} 3. Nf3 {[%emt 0:00:01]} Bb4+ {[%emt 0:00:05]} 4. Nbd2 {[%emt 0:00:08]} b6 {[%emt 0:00:05]} 5. a3 {[%emt 0:00:05]} Bxd2+ {[%emt 0:00:03]} 6. Qxd2 {[%emt 0:00:01]} Bb7 {[%emt 0:00:05]} 7. e3 {[%emt 0:00:02]} O-O {[%emt 0:00:32]} 8. b3 {[%emt 0:00:10]} d5 {[%emt 0:00:09]} 9. Bb2 {[%emt 0:00:02]} Nbd7 {[%emt 0:00:26]} 10. Be2 {[%emt 0:00:13]} c5 {[%emt 0:00:06]} 11. O-O {[%emt 0:00:02]} dxc4 {[%emt 0:00:04]} 12. bxc4 {[%emt 0:00:02]} Rc8 {[%emt 0:00:34]} 13. Rfc1 {[%emt 0:00:08]} Ne4 {[%emt 0:00:27]} 14. Qe1 {[%emt 0:00:12]} Rc7 {[%emt 0:01:58]} 15. a4 {[%emt 0:00:28]} Ng5 {[%emt 0:00:43]} 16. Nd2 {[%emt 0:00:32]} Qf6 {[%emt 0:00:52]} 17. f3 {[%emt 0:02:39]} h6 {[%emt 0:01:54]} 18. Qg3 {[%emt 0:00:16]} Rfc8 {[%emt 0:00:18]} 19. h4 {[%emt 0:00:40]} Nh7 {[%emt 0:00:02]} 20. Bd3 {[%emt 0:04:50]} Nhf8 {[%emt 0:00:19]} 21. h5 {[%emt 0:02:15]} cxd4 {[%emt 0:00:19]} 22. exd4 {[%emt 0:00:01]} Nc5 {[%emt 0:02:31]} 23. Bc2 {[%emt 0:00:15]} Rd7 {[%emt 0:00:09]} 24. Rab1 {[%emt 0:02:02]} Rxd4 {[%emt 0:00:17]} 25. Ne4 {[%emt 0:01:54]} Bxe4 {[%emt 0:00:52]} 26. fxe4 {[%emt 0:00:09]} Qd8 {[%emt 0:01:01]} 27. Qe5 {[%emt 0:01:55]} 1-0

[Event "FIDE Open World Rapid 2024"]
[Site "New York"]
[Date "2024.12.27"]
[Round "6.3"]
[White "Sargsyan, Shant"]
[Black "Naroditsky, Daniel"]
[Result "1/2-1/2"]
[ECO "B38"]
[WhiteElo "2646"]
[BlackElo "2619"]
[Annotator "ChessBase"]
[PlyCount "72"]
[EventDate "2024.12.14"]
[EventType "swiss"]
[EventCountry "USA"]
[SourceTitle "playchess.com"]
[Source "ChessBase"]
[SourceQuality "1"]
[TimeControl "900+10"]

1. e4 {[%emt 0:00:03]} c5 {[%emt 0:00:01]} 2. Nf3 {[%emt 0:00:03]} g6 {[%emt 0:00:09]} 3. c4 {[%emt 0:00:18]} Bg7 {[%emt 0:00:13]} 4. d4 {[%emt 0:00:02]} cxd4 {[%emt 0:00:02]} 5. Nxd4 {[%emt 0:00:02]} Nc6 {[%emt 0:00:05]} 6. Be3 {[%emt 0:00:04]} Qb6 {[%emt 0:00:08]} 7. Nb3 {[%emt 0:00:28]} Qd8 {[%emt 0:00:03]} 8. Qd2 {[%emt 0:00:35]} Nf6 {[%emt 0:00:27]} 9. f3 {[%emt 0:00:09]} d6 {[%emt 0:00:53]} 10. Nc3 {[%emt 0:00:06]} Be6 {[%emt 0:01:01]} 11. Be2 {[%emt 0:02:38]} O-O {[%emt 0:00:34]} 12. O-O {[%emt 0:00:06]} a5 {[%emt 0:00:16]} 13. Na4 {[%emt 0:00:41]} Nd7 {[%emt 0:00:39]} 14. Rad1 {[%emt 0:02:18]} Nce5 {[%emt 0:01:19]} 15. c5 {[%emt 0:02:45]} Nc4 {[%emt 0:01:33]} 16. Qc1 {[%emt 0:01:08]} Nxe3 {[%emt 0:00:51]} 17. Qxe3 {[%emt 0:00:01]} dxc5 {[%emt 0:02:59]} 18. Nbxc5 {[%emt 0:01:15]} Nxc5 {[%emt 0:00:05]} 19. Qxc5 {[%emt 0:00:07]} Qc8 {[%emt 0:00:39]} 20. b3 {[%emt 0:00:48]} Rd8 {[%emt 0:01:00]} 21. Rxd8+ {[%emt 0:00:17]} Qxd8 {[%emt 0:00:01]} 22. Rd1 {[%emt 0:00:01]} Qf8 {[%emt 0:00:39]} 23. Kf1 {[%emt 0:01:06]} h5 {[%emt 0:00:45]} 24. Nb6 {[%emt 0:00:35]} Rd8 {[%emt 0:00:03]} 25. Qxa5 {[%emt 0:00:52]} Rxd1+ {[%emt 0:00:53]} 26. Bxd1 {[%emt 0:00:01]} Bd4 {[%emt 0:01:02]} 27. Nd5 {[%emt 0:01:14]} Qh6 {[%emt 0:02:13]} 28. Qb4 {[%emt 0:00:30]} Be5 {[%emt 0:00:32]} 29. Nxe7+ {[%emt 0:01:29]} Kh7 {[%emt 0:00:02]} 30. Qc5 {[%emt 0:00:12]} Bxh2 {[%emt 0:00:38]} 31. Nd5 {[%emt 0:00:13]} Bxd5 {[%emt 0:00:18]} 32. Qxd5 {[%emt 0:00:07]} Qe3 {[%emt 0:00:13]} 33. Qxf7+ {[%emt 0:00:04]} Kh6 {[%emt 0:00:01]} 34. Qf8+ {[%emt 0:00:11]} Kh7 {[%emt 0:00:01]} 35. Qf7+ {[%emt 0:00:13]} Kh6 {[%emt 0:00:01]} 36. Qf8+ {[%emt 0:00:12]} Kh7 {[%emt 0:00:13]} 1/2-1/2

[Event "FIDE Open World Rapid 2024"]
[Site "New York"]
[Date "2024.12.27"]
[Round "6.3"]
[White "Bologan, Victor"]
[Black "Amartuvshin, Ganzorig"]
[Result "1/2-1/2"]
[ECO "C50"]
[WhiteElo "2600"]
[BlackElo "2392"]
[Annotator "ChessBase"]
[PlyCount "183"]
[EventDate "2024.12.14"]
[EventType "swiss"]
[EventCountry "USA"]
[SourceTitle "playchess.com"]
[Source "ChessBase"]
[SourceQuality "1"]
[TimeControl "900+10"]

1. e4 {[%emt 0:00:02]} e5 {[%emt 0:00:02]} 2. Nf3 {[%emt 0:00:00]} Nc6 {[%emt 0:00:03]} 3. Bc4 {[%emt 0:00:02]} Bc5 {[%emt 0:00:04]} 4. d3 {[%emt 0:00:02]} Nf6 {[%emt 0:00:03]} 5. a4 {[%emt 0:00:06]} a5 {[%emt 0:00:04]} 6. c3 {[%emt 0:00:15]} d6 {[%emt 0:00:05]} 7. O-O {[%emt 0:00:21]} Ba7 {[%emt 0:00:04]} 8. Re1 {[%emt 0:00:09]} O-O {[%emt 0:00:16]} 9. h3 {[%emt 0:00:03]} h6 {[%emt 0:00:06]} 10. Bb3 {[%emt 0:00:47]} Be6 {[%emt 0:00:46]} 11. Bxe6 {[%emt 0:00:27]} fxe6 {[%emt 0:00:03]} 12. Be3 {[%emt 0:00:01]} Bxe3 {[%emt 0:00:31]} 13. Rxe3 {[%emt 0:00:01]} Qe8 {[%emt 0:01:10]} 14. Nbd2 {[%emt 0:00:08]} Nh5 {[%emt 0:00:17]} 15. g3 {[%emt 0:00:04]} Nf6 {[%emt 0:03:36]} 16. Qb3 {[%emt 0:00:22]} g5 {[%emt 0:01:07]} 17. Kg2 {[%emt 0:00:33]} Rb8 {[%emt 0:00:48]} 18. d4 {[%emt 0:01:47]} g4 {[%emt 0:00:43]} 19. hxg4 {[%emt 0:00:09]} Nxg4 {[%emt 0:00:02]} 20. Re2 {[%emt 0:00:02]} Qg6 {[%emt 0:01:18]} 21. Nh4 {[%emt 0:00:41]} Qf7 {[%emt 0:00:25]} 22. Ndf3 {[%emt 0:00:37]} Kh8 {[%emt 0:00:44]} 23. Rh1 {[%emt 0:01:26]} Rg8 {[%emt 0:00:45]} 24. d5 {[%emt 0:02:00]} exd5 {[%emt 0:01:09]} 25. Qxd5 {[%emt 0:00:07]} Qxd5 {[%emt 0:00:09]} 26. exd5 {[%emt 0:00:12]} Ne7 {[%emt 0:00:11]} 27. c4 {[%emt 0:00:07]} Rbf8 {[%emt 0:00:09]} 28. Nd2 {[%emt 0:00:06]} Kh7 {[%emt 0:00:59]} 29. Ne4 {[%emt 0:00:07]} b6 {[%emt 0:00:30]} 30. Nf3 {[%emt 0:00:57]} Kg7 {[%emt 0:00:48]} 31. Rh4 {[%emt 0:02:55]} Nf6 {[%emt 0:00:06]} 32. Nxf6 {[%emt 0:00:09]} Rxf6 {[%emt 0:00:03]} 33. Rg4+ {[%emt 0:00:07]} Kf7 {[%emt 0:00:04]} 34. Rxg8 {[%emt 0:00:04]} Kxg8 {[%emt 0:00:02]} 35. Nd4 {[%emt 0:00:22]} Nf5 {[%emt 0:02:19]} 36. Ne6 {[%emt 0:00:21]} Rf7 {[%emt 0:00:37]} 37. f4 {[%emt 0:00:44]} exf4 {[%emt 0:00:04]} 38. gxf4 {[%emt 0:00:01]} Ng7 {[%emt 0:00:22]} 39. Kf3 {[%emt 0:00:23]} Nf5 {[%emt 0:00:18]} 40. Rg2+ {[%emt 0:00:17]} Kh7 {[%emt 0:00:04]} 41. Ke4 {[%emt 0:00:02]} Ng7 {[%emt 0:00:38]} 42. Rf2 {[%emt 0:01:23]} Nh5 {[%emt 0:00:07]} 43. Rh2 {[%emt 0:00:35]} Nf6+ {[%emt 0:00:07]} 44. Kf3 {[%emt 0:00:14]} Kg6 {[%emt 0:00:08]} 45. Rg2+ {[%emt 0:00:33]} Kh7 {[%emt 0:00:01]} 46. b3 {[%emt 0:00:12]} Nd7 {[%emt 0:00:06]} 47. Rh2 {[%emt 0:00:07]} Kg6 {[%emt 0:00:06]} 48. Nxc7 {[%emt 0:01:17]} Nc5 {[%emt 0:00:41]} 49. Nb5 {[%emt 0:00:00]} Rf6 {[%emt 0:00:05]} 50. Nd4 {[%emt 0:00:02]} h5 {[%emt 0:00:02]} 51. Rg2+ {[%emt 0:00:08]} Kf7 {[%emt 0:00:16]} 52. Rg5 {[%emt 0:00:06]} Nd3 {[%emt 0:00:16]} 53. Ne6 {[%emt 0:00:56]} Rh6 {[%emt 0:00:04]} 54. Rf5+ {[%emt 0:00:17]} Ke7 {[%emt 0:00:13]} 55. Rg5 {[%emt 0:00:19]} h4 {[%emt 0:00:04]} 56. Rg1 {[%emt 0:00:06]} h3 {[%emt 0:00:04]} 57. Rh1 {[%emt 0:00:03]} Kf6 {[%emt 0:00:17]} 58. Ng5 {[%emt 0:00:07]} h2 {[%emt 0:00:05]} 59. Ne4+ {[%emt 0:00:01]} Ke7 {[%emt 0:00:12]} 60. Kg3 {[%emt 0:00:09]} Rh8 {[%emt 0:00:22]} 61. f5 {[%emt 0:00:06]} Nc5 {[%emt 0:00:09]} 62. f6+ {[%emt 0:00:17]} Kf7 {[%emt 0:00:06]} 63. Nxd6+ {[%emt 0:00:20]} Kxf6 {[%emt 0:00:01]} 64. Rxh2 {[%emt 0:00:02]} Rxh2 {[%emt 0:00:09]} 65. Kxh2 {[%emt 0:00:01]} Nxb3 {[%emt 0:00:05]} 66. Nc8 {[%emt 0:00:04]} Ke5 {[%emt 0:00:06]} 67. Kg3 {[%emt 0:00:08]} Nd2 {[%emt 0:00:36]} 68. Nxb6 {[%emt 0:00:10]} Kd6 {[%emt 0:00:00]} 69. Kf4 {[%emt 0:00:19]} Kc5 {[%emt 0:00:02]} 70. Nd7+ {[%emt 0:00:10]} Kxc4 {[%emt 0:00:02]} 71. Nf6 {[%emt 0:00:07]} Kc5 {[%emt 0:00:04]} 72. Ke5 {[%emt 0:00:26]} Nc4+ {[%emt 0:00:01]} 73. Ke6 {[%emt 0:00:01]} Kb4 {[%emt 0:00:02]} 74. Ng4 {[%emt 0:00:27]} Kxa4 {[%emt 0:00:05]} 75. Ne3 {[%emt 0:00:09]} Nd2 {[%emt 0:00:54]} 76. Ke5 {[%emt 0:00:45]} Nf3+ {[%emt 0:00:07]} 77. Ke4 {[%emt 0:00:08]} Ng5+ {[%emt 0:00:08]} 78. Kf5 {[%emt 0:00:05]} Nf7 {[%emt 0:00:03]} 79. Ke6 {[%emt 0:00:06]} Ng5+ {[%emt 0:00:02]} 80. Kf6 {[%emt 0:00:18]} Ne4+ {[%emt 0:00:02]} 81. Ke5 {[%emt 0:00:01]} Nc5 {[%emt 0:00:02]} 82. d6 {[%emt 0:00:12]} Kb3 {[%emt 0:00:40]} 83. Kd5 {[%emt 0:00:03]} Nd7 {[%emt 0:00:02]} 84. Kc6 {[%emt 0:00:10]} Ne5+ {[%emt 0:00:02]} 85. Kc7 {[%emt 0:00:03]} a4 {[%emt 0:00:01]} 86. Ng4 {[%emt 0:00:09]} Nf7 {[%emt 0:00:31]} 87. d7 {[%emt 0:00:13]} a3 {[%emt 0:00:02]} 88. Ne5 {[%emt 0:00:16]} a2 {[%emt 0:00:05]} 89. Nxf7 {[%emt 0:00:02]} a1=Q {[%emt 0:00:02]} 90. d8=Q {[%emt 0:00:02]} Qa5+ {[%emt 0:00:02]} 91. Kd7 {[%emt 0:00:01]} Qxd8+ {[%emt 0:00:01]} 92. Nxd8 {[%emt 0:00:02]} 1/2-1/2

[Event "FIDE Open World Rapid 2024"]
[Site "New York"]
[Date "2024.12.27"]
[Round "6.4"]
[White "Giri, Anish"]
[Black "Aronian, Levon"]
[Result "1-0"]
[ECO "A30"]
[WhiteElo "2733"]
[BlackElo "2747"]
[Annotator "TA"]
[PlyCount "102"]
[EventDate "2024.12.14"]
[EventType "swiss"]
[EventCountry "USA"]
[SourceTitle "playchess.com"]
[Source "ChessBase"]
[SourceQuality "1"]
[TimeControl "900+10"]

{[%evp 14,102,19,7,6,2,7,11,13,0,0,0,0,0,0,0,2,8,21,1,36,29,31,13,27,0,5,-7,0,0,0,8,69,58,75,66,99,97,90,104,94,92,91,91,144,109,134,139,131,120,110,110,105,98,100,64,74,65,64,62,65,8,77,69,47,68,107,97,137,130,136,133,247,245,241,256,598,598,561,586,576,572,662,662,662,662,654,654,647,610,520]} 1. Nf3 {[%emt 0:00:01]} Nf6 {[%emt 0:00:02]} 2. g3 {[%emt 0:00:01]} c5 {[%emt 0:00:03]} 3. Bg2 {[%emt 0:00:05]} Nc6 {[%emt 0:00:02]} 4. c4 {[%emt 0:00:33]} d5 {[%emt 0:00:02]} 5. cxd5 {[%emt 0:00:05]} Nxd5 {[%emt 0:00:02]} 6. Nc3 {[%emt 0:00:01]} Nxc3 {[%emt 0:00:02]} 7. bxc3 {[%emt 0:00:35]} e5 {[%emt 0:00:02]} 8. d3 {[%emt 0:00:13]} Be7 {[%emt 0:00:14]} 9. Nd2 {[%emt 0:00:03]} Bd7 {[%emt 0:00:10]} 10. Rb1 {[%emt 0:00:09]} Rb8 {[%emt 0:00:03]} 11. O-O {[%emt 0:00:14]} O-O {[%emt 0:00:04]} 12. a4 {[%emt 0:02:16]} Na5 {[%emt 0:00:17]} 13. c4 {[%emt 0:00:13]} Qe8 {[%emt 0:00:55]} 14. Ra1 {[%emt 0:00:04]} f5 {[%emt 0:00:15]} 15. Bb2 {[%emt 0:00:06]} Bd6 {[%emt 0:00:03]} 16. Bc3 {[%emt 0:00:18]} b6 {[%emt 0:01:07]} 17. e3 {[%emt 0:00:53]} Kh8 {[%emt 0:00:23]} 18. Re1 {[%emt 0:00:20]} Rd8 {[%emt 0:01:57]} 19. d4 {[%emt 0:01:20]} e4 {[%emt 0:00:51]} 20. Qc2 {[%emt 0:00:25]} Nc6 {[%emt 0:02:28]} 21. Qb2 {[%emt 0:04:09]} Qg6 {[%emt 0:00:01]} 22. a5 {[%emt 0:00:39]} bxa5 {[%emt 0:01:05]} ({Better is} 22... Nxa5 $1 $11 23. d5 Bc7) 23. dxc5 $1 $14 {[%emt 0:00:15]} Bxc5 {[%emt 0:00:24]} 24. Nb3 $1 {[%emt 0:00:01]} Bb6 {[%emt 0:01:33]} 25. c5 {[%emt 0:00:19]} Bc7 {[%emt 0:00:01]} 26. Nxa5 {[%emt 0:00:02]} Rb8 {[%emt 0:03:46]} 27. Qd2 {[%emt 0:00:03]} Bxa5 {[%emt 0:01:52]} 28. Bxa5 {[%emt 0:00:03]} Rf7 {[%emt 0:00:28]} (28... Be6 $142) 29. Bc3 {[%emt 0:00:12]} h6 {[%emt 0:00:06]} 30. Red1 {[%emt 0:00:15]} Qe6 {[%emt 0:00:36]} 31. Bf1 {[%emt 0:01:03] This pair of bishops is nice.} Kh7 {[%emt 0:00:13]} 32. Qd6 {[%emt 0:00:59]} Qb3 {[%emt 0:00:04]} 33. Rdc1 {[%emt 0:00:20][%cal Oa1b1]} Be8 {[%emt 0:00:16]} 34. Qd1 {[%emt 0:00:56]} Qe6 {[%emt 0:00:33]} 35. Ra6 {[%emt 0:00:17]} Rfb7 {[%emt 0:00:41]} 36. h4 {[%emt 0:00:46][%cal Bh2h4,Bh4h5][%mdl 32]} Qf7 {[%emt 0:00:10]} 37. Qc2 {[%emt 0:00:37]} (37. Kg2 $14) 37... Rc8 {[%emt 0:00:15]} (37... Qd5 $11) 38. Qa2 {[%emt 0:00:18]} (38. Rd1 {feels hotter.} Rbc7 39. Qa2 Qe7 40. Rd6) 38... Qxa2 {[%emt 0:00:10]} 39. Rxa2 {[%emt 0:00:02] Black must now prevent Ba6.} Nb8 {[%emt 0:00:04]} 40. Be5 {[%emt 0:00:15] Black is weak on the dark squares} Bd7 {[%emt 0:00:18]} 41. h5 {[%emt 0:01:06] White is more active.} Be6 {[%emt 0:00:09]} 42. Raa1 {[%emt 0:00:29]} Rd7 {[%emt 0:00:01] [#]} (42... Kg8 $16 43. Bd6 Kf7) 43. c6 $1 $18 {[%emt 0:00:29]} Nxc6 {[%emt 0:00:08]} 44. Ba6 {[%emt 0:00:03]} Nxe5 $2 {[%emt 0:00:21]} (44... Rdd8) 45. Bxc8 {[%emt 0:00:01]} Re7 {[%emt 0:00:07]} 46. Bxe6 {[%emt 0:00:03]} Rxe6 {[%emt 0:00:01]} 47. Rxa7 {[%emt 0:00:02] KRR-KRN} Re8 {[%emt 0:00:24]} 48. Rcc7 {[%emt 0:00:09]} Rg8 {[%emt 0:00:00]} 49. Rc5 {[%emt 0:00:10]} Re8 {[%emt 0:00:18]} 50. Kg2 {[%emt 0:00:11]} Kh8 {[%emt 0:00:11]} 51. Raa5 {[%emt 0:00:33]} Nf3 {[%emt 0:00:22]} 1-0